bitfinex/quotes_SOLUSD_20250310
["timestamp","ask_amount","ask_price","bid_price","bid_amount"]
[1741581232919,26.44874886,128.22,128.15,27.3116]
[1741581233105,26.66383471,128.2,128.15,27.3116]
[1741581233617,26.66383471,128.21,128.15,53.97543471]
[1741581234615,26.66383471,128.2,128.15,27.3116]
[1741581234817,26.66383471,128.19,128.15,7.8033]
[1741581235016,26.66383471,128.17,128.14,81.5]
[1741581235215,26.66383471,128.16,128.14,89.3037]
[1741581235519,26.66383471,128.16,128.14,7.8037]
[1741581235905,26.66383471,128.16,128.15,0.063]
[1741581237301,25.66964886,128.2,128.15,0.063]
[1741581237302,26.66383471,128.18,128.15,0.063]
[1741581238217,26.66383471,128.17,128.15,0.063]
[1741581238926,26.66383471,128.16,128.15,0.063]
[1741581241123,79.78001828,128.16,128.15,0.063]
[1741581241616,81.39121828,128.16,128.15,0.063]
[1741581246195,28.06354886,128.16,128.15,0.063]
[1741581246422,61.43752006,128.16,128.15,0.063]
[1741581247013,53.63482006,128.16,128.15,0.063]
[1741581247197,35.33663446,128.16,128.15,0.063]
[1741581249225,59.82632006,128.16,128.15,0.063]
[1741581252714,1.5861,128.14,128.13,0.568]
[1741581252915,25.02004886,128.13,128.12,0.063]
[1741581253238,124.10703446,128.13,128.12,0.063]
[1741581255061,117.73663446,128.13,128.12,0.063]
[1741581255350,16.6869856,128.13,128.12,0.063]
[1741581255732,16.6869856,128.14,128.12,0.063]
[1741581255931,16.6869856,128.15,128.12,0.063]
[1741581256253,35.33663446,128.16,128.12,0.063]
[1741581256557,35.33663446,128.16,128.12,7.8681]
[1741581257736,16.6869856,128.16,128.12,27.381]
[1741581257950,28.94894018,128.18,128.12,44.0679856]
[1741581258153,12.26195458,128.18,128.15,16.6869856]
[1741581258326,16.6869856,128.19,128.16,1.5107]
[1741581258651,16.6869856,128.19,128.17,7.8021]
[1741581260261,26.6730637,128.19,128.17,7.8021]
[1741581261054,18.64964886,128.21,128.17,7.8021]
[1741581261237,26.6730637,128.2,128.17,7.8021]
[1741581262535,45.32271256,128.21,128.17,7.8021]
[1741581263233,20.0,128.23,128.17,53.9804637]
[1741581263462,26.6730637,128.23,128.18,26.6730637]
[1741581263666,46.6730637,128.22,128.17,53.9804637]
[1741581265672,46.6730637,128.22,128.17,34.4751637]
[1741581265869,26.6730637,128.2,128.17,7.8021]
[1741581266237,26.6730637,128.21,128.17,7.8021]
[1741581268169,26.6730637,128.2,128.17,7.8021]
[1741581268353,26.6730637,128.2,128.16,172.3132]
[1741581269570,26.6730637,128.17,128.12,7.8676]
[1741581269869,26.6730637,128.16,128.12,7.8676]
[1741581270079,26.6730637,128.17,128.12,7.8676]
[1741581270641,26.6730637,128.16,128.12,7.8676]
[1741581270843,26.6730637,128.15,128.12,7.8676]
[1741581271161,26.6730637,128.16,128.12,7.8676]
[1741581271737,26.6730637,128.14,128.12,0.063]
[1741581271941,26.6730637,128.15,128.12,0.063]
[1741581273142,7.02,128.19,128.12,0.063]
[1741581273356,26.6730637,128.15,128.12,0.063]
[1741581273543,18.64964886,128.18,128.12,0.063]
[1741581273544,26.6730637,128.14,128.12,0.063]
[1741581273738,26.6730637,128.13,128.12,0.063]
[1741581273956,45.32271256,128.13,128.12,0.063]
[1741581280396,35.33855592,128.13,128.12,0.063]
[1741581280772,7.02,128.14,128.12,0.063]
[1741581281177,23.70890706,128.14,128.12,0.063]
[1741581281384,16.68890706,128.14,128.12,0.063]
[1741581281685,16.68890706,128.13,128.12,0.063]
[1741581284268,20.0,128.13,128.12,0.063]
[1741581284681,99.11890706,128.15,128.12,0.063]
[1741581285277,16.71890706,128.15,128.12,0.063]
[1741581286097,0.03,128.15,128.12,0.063]
[1741581286481,16.68890706,128.14,128.12,0.063]
[1741581287399,16.71890706,128.15,128.12,0.063]
[1741581291400,0.03,128.15,128.12,0.063]
[1741581291598,0.03,128.15,128.14,16.68890706]
[1741581292184,0.03,128.15,128.13,1.6247]
[1741581292990,0.03,128.15,128.12,0.063]
[1741581292991,16.68890706,128.14,128.12,0.063]
[1741581293175,36.68890706,128.13,128.12,0.063]
[1741581293503,20.0,128.13,128.12,0.063]
[1741581294570,7.05,128.15,128.12,0.063]
[1741581295795,7.05,128.15,128.12,7.8681]
[1741581296001,0.03,128.15,128.12,7.8681]
[1741581297078,0.03,128.15,128.13,18.21920706]
[1741581297499,0.03,128.15,128.13,1.5303]
[1741581298304,0.03,128.15,128.14,7.8039]
[1741581298507,0.03,128.15,128.14,24.49280706]
[1741581299108,0.03,128.15,128.13,9.3346]
[1741581299477,0.03,128.15,128.13,26.02350706]
[1741581299892,0.03,128.15,128.14,16.68890706]
[1741581300111,0.03,128.15,128.13,26.02350706]
[1741581300608,0.03,128.15,128.14,16.68890706]
[1741581302600,0.03,128.15,128.14,24.49280706]
[1741581303785,0.03,128.15,128.13,172.3345]
[1741581304605,0.03,128.15,128.13,163.0]
[1741581305177,0.03,128.15,128.13,170.8043]
[1741581305580,0.03,128.15,128.13,24.49320706]
[1741581305780,0.03,128.15,128.14,16.68890706]
[1741581306280,0.03,128.15,128.13,24.49320706]
[1741581306480,0.03,128.15,128.12,24.55680706]
[1741581306707,0.03,128.15,128.12,7.8679]
[1741581307604,0.03,128.15,128.12,0.063]
[1741581307791,16.68890706,128.14,128.12,0.063]
[1741581307996,16.68890706,128.13,128.12,0.063]
[1741581309809,16.68890706,128.14,128.12,0.063]
[1741581310482,0.03,128.15,128.12,0.063]
[1741581310684,20.0,128.14,128.12,0.063]
[1741581310893,20.0,128.14,128.12,7.8681]
[1741581311602,0.03,128.15,128.13,16.68890706]
[1741581311818,0.03,128.15,128.14,16.68890706]
[1741581312030,0.03,128.15,128.13,16.68890706]
[1741581312888,0.0001,128.15,128.14,16.68890706]
[1741581313300,0.0001,128.15,128.14,22.93070706]
[1741581313818,0.0001,128.15,128.14,334.93070706]
[1741581314520,0.03,128.2,128.16,1.6204]
[1741581314691,0.03,128.2,128.19,16.68890706]
[1741581315085,0.03,128.2,128.19,24.48980706]
[1741581315595,0.03,128.2,128.19,7.8009]
[1741581315813,0.03,128.2,128.18,16.68890706]
[1741581316115,0.03,128.2,128.17,7.8021]
[1741581316323,20.03,128.2,128.16,26.11180706]
[1741581316617,36.71890706,128.2,128.15,24.49210706]
[1741581316826,20.03,128.2,128.16,16.68890706]
[1741581317192,20.03,128.2,128.17,16.68890706]
[1741581317595,0.03,128.2,128.18,16.68890706]
[1741581318002,0.03,128.2,128.19,16.68890706]
[1741581318709,0.03,128.2,128.18,16.68890706]
[1741581318915,0.03,128.2,128.19,16.68890706]
[1741581319422,0.03,128.2,128.18,24.49020706]
[1741581319723,0.03,128.2,128.17,24.49080706]
[1741581320406,0.03,128.2,128.16,187.49140706]
[1741581320606,0.03,128.2,128.16,105.99140706]
[1741581322601,16.71890706,128.2,128.16,89.3025]
[1741581323406,16.68890706,128.19,128.14,16.68890706]
[1741581323607,16.68890706,128.17,128.13,0.063]
[1741581324197,16.68890706,128.18,128.13,16.75190706]
[1741581324403,18.64964886,128.19,128.14,16.68890706]
[1741581324404,35.33855592,128.19,128.14,16.68890706]
[1741581324614,16.68890706,128.19,128.14,16.68890706]
[1741581324927,22.71910706,128.2,128.14,16.68890706]
[1741581325096,35.33855592,128.19,128.14,16.68890706]
[1741581325492,16.68890706,128.19,128.15,7.8033]
[1741581325698,22.71910706,128.2,128.15,24.49220706]
[1741581326822,22.71910706,128.2,128.14,24.49280706]
[1741581327031,22.71910706,128.2,128.17,16.68890706]
[1741581327032,0.03,128.2,128.17,16.68890706]
[1741581328322,0.03,128.2,128.18,7.8015]
[1741581328723,0.03,128.2,128.16,16.68890706]
[1741581328931,36.68890706,128.19,128.14,101.0097]
[1741581329234,36.68890706,128.19,128.14,36.19860706]
[1741581329644,36.68890706,128.19,128.15,7.8033]
[1741581331228,20.0,128.19,128.15,24.49220706]
[1741581331943,20.0,128.19,128.15,7.8033]
[1741581332745,20.0,128.19,128.15,24.49220706]
[1741581332956,0.03,128.2,128.16,16.68890706]
[1741581333818,16.71890706,128.2,128.15,24.49220706]
[1741581334035,16.71890706,128.2,128.15,7.8033]
[1741581334647,35.33855592,128.19,128.13,163.063]
[1741581334812,35.33855592,128.19,128.13,89.3673]
[1741581334813,16.68890706,128.18,128.13,89.3673]
[1741581335213,16.68890706,128.18,128.13,106.05620706]
[1741581336139,13.0573,128.19,128.15,16.68890706]
[1741581336740,6.0373,128.19,128.15,16.68890706]
[1741581336938,0.03,128.2,128.16,16.68890706]
[1741581337642,0.03,128.2,128.15,16.68890706]
[1741581338638,0.03,128.2,128.16,7.8027]
[1741581340156,0.03,128.2,128.16,43.99840706]
[1741581340533,16.71890706,128.2,128.16,7.8027]
[1741581342540,24.51930706,128.2,128.15,24.55500706]
[1741581342742,16.68890706,128.18,128.15,0.063]
[1741581342937,16.68890706,128.17,128.15,0.063]
[1741581343661,20.0,128.16,128.15,0.063]
[1741581343826,42.92560706,128.16,128.15,0.063]
[1741581344236,86.06686298,128.16,128.15,0.063]
[1741581344646,69.37795592,128.16,128.15,0.063]
[1741581344850,42.92560706,128.16,128.15,0.063]
[1741581345454,22.92560706,128.16,128.15,0.063]
[1741581346174,49.37795592,128.16,128.15,0.063]
[1741581346541,66.06686298,128.16,128.15,0.063]
[1741581347066,49.37795592,128.16,128.15,0.063]
[1741581347976,66.06686298,128.16,128.15,0.063]
[1741581349170,20.0,128.14,128.13,0.063]
[1741581349361,36.68890706,128.14,128.13,0.063]
[1741581350272,44.49280706,128.14,128.13,0.063]
[1741581356665,64.75775592,128.14,128.13,0.063]
[1741581360866,20.0,128.1,128.06,0.505]
[1741581361063,36.68890706,128.07,128.06,0.505]
[1741581361784,55.33855592,128.07,128.06,0.505]
[1741581365379,137.73855592,128.07,128.06,0.505]
[1741581365889,63.14675592,128.07,128.06,0.505]
[1741581366094,64.66985592,128.07,128.06,0.505]
[1741581366271,20.0,128.03,127.99,0.063]
[1741581366466,16.68890706,128.01,127.99,0.063]
[1741581367378,16.68890706,128.01,127.99,7.8761]
[1741581368104,16.68890706,128.01,127.99,0.063]
[1741581369106,16.68890706,128.02,127.99,0.063]
[1741581369399,20.0,128.01,127.99,0.063]
[1741581369905,16.68890706,128.02,127.99,0.063]
[1741581370074,20.0,128.01,127.99,0.063]
[1741581370270,7.02,128.03,127.99,16.75190706]
[1741581370512,23.70890706,128.03,127.99,0.063]
[1741581371406,16.68890706,128.05,128.0,16.75190706]
[1741581372275,23.70890706,128.08,128.03,16.68890706]
[1741581372582,16.68890706,128.09,128.04,16.68890706]
[1741581372811,16.68890706,128.09,128.03,16.68890706]
[1741581373478,16.68890706,128.09,128.04,27.3351]
[1741581373907,16.68890706,128.09,128.04,44.02400706]
[1741581375489,16.68890706,128.1,128.05,16.68890706]
[1741581376574,16.68890706,128.09,128.04,83.07420706]
[1741581376809,108.06964886,128.11,128.05,16.68890706]
[1741581377115,106.10890706,128.11,128.06,16.68890706]
[1741581377410,16.75190706,128.13,128.08,16.68890706]
[1741581377782,0.063,128.13,128.08,16.68890706]
[1741581377981,20.0,128.11,128.07,83.05870706]
[1741581378705,20.0,128.11,128.07,44.01760706]
[1741581379781,0.063,128.13,128.09,16.68890706]
[1741581380005,0.063,128.13,128.11,1.6037]
[1741581380285,0.063,128.13,128.11,18.29260706]
[1741581380614,0.063,128.13,128.12,16.68890706]
[1741581381525,0.063,128.13,128.12,24.49400706]
[1741581382894,0.0001,128.13,128.12,24.49400706]
[1741581383213,0.0001,128.13,128.12,30.54850706]
[1741581383594,0.0001,128.13,128.12,37.58850706]
[1741581384113,0.0001,128.13,128.12,31.53400706]
[1741581384610,0.0001,128.13,128.12,14.8451]
[1741581384829,0.0001,128.13,128.12,7.8051]
[1741581388312,0.0001,128.13,128.12,24.49400706]
[1741581390220,0.0001,128.13,128.12,7.8051]
[1741581390518,0.0001,128.13,128.12,24.49400706]
[1741581392290,0.0001,128.13,128.12,187.49400706]
[1741581395699,0.0001,128.13,128.11,1.6037]
[1741581396005,0.0001,128.13,128.11,9.4093]
[1741581396720,0.0001,128.13,128.11,26.09820706]
[1741581397222,0.0001,128.13,128.12,16.68890706]
[1741581397621,0.0001,128.13,128.12,24.49400706]
[1741581400508,0.0001,128.13,128.12,7.8051]
[1741581402219,0.0001,128.13,128.11,7.8055]
[1741581404222,0.0001,128.13,128.11,16.68890706]
[1741581404438,0.0001,128.13,128.1,24.49530706]
[1741581404621,0.0001,128.13,128.1,7.8064]
[1741581404825,0.0001,128.13,128.11,16.68890706]
[1741581406339,0.0001,128.13,128.12,16.68890706]
[1741581406505,0.0001,128.13,128.12,24.49400706]
[1741581406710,0.0001,128.13,128.12,7.8051]
[1741581407858,0.0001,128.13,128.11,7.8055]
[1741581408537,0.0001,128.13,128.11,24.49440706]
[1741581409551,0.0001,128.13,128.11,7.8055]
[1741581409755,0.0001,128.13,128.1,7.8061]
[1741581411423,0.0001,128.13,128.09,105.99560706]
[1741581411650,23.08390706,128.13,128.08,210.6873]
[1741581411860,16.68890706,128.12,128.08,7.8073]
[1741581413137,16.68890706,128.09,128.06,0.03]
[1741581413871,14.8253,128.12,128.06,0.03]
[1741581413872,16.68890706,128.08,128.06,0.03]
[1741581415673,16.68890706,128.09,128.06,0.03]
[1741581417971,24.49600706,128.09,128.06,0.03]
[1741581418147,16.68890706,128.08,128.06,0.03]
[1741581418472,7.8071,128.09,128.06,0.03]
[1741581418473,36.68890706,128.07,128.06,0.03]
[1741581419461,20.0,128.07,128.06,0.03]
[1741581419836,36.68890706,128.07,128.06,0.03]
[1741581420464,51.11950706,128.07,128.06,0.03]
[1741581420770,69.76915592,128.07,128.06,0.03]
[1741581421556,76.78915592,128.07,128.06,0.03]
[1741581423053,78.35125592,128.07,128.06,0.03]
[1741581423253,20.0,128.03,128.0,0.063]
[1741581423577,16.68890706,128.01,128.0,0.063]
[1741581430398,16.68890706,128.01,127.99,0.063]
[1741581430399,43.15035592,128.01,127.99,0.063]
[1741581430690,20.0,127.97,127.93,0.03]
[1741581430883,16.68890706,127.96,127.93,0.03]
[1741581432269,16.68890706,127.95,127.93,0.03]
[1741581432680,16.68890706,127.94,127.93,0.03]
[1741581433259,16.68890706,127.95,127.93,0.03]
[1741581434176,16.68890706,127.94,127.93,0.03]
[1741581436590,16.68890706,127.95,127.93,0.03]
[1741581436974,16.68890706,127.94,127.93,0.03]
[1741581437684,16.68890706,127.95,127.93,0.03]
[1741581437894,16.68890706,127.94,127.93,0.03]
[1741581439587,23.70890706,127.95,127.93,0.03]
[1741581439799,7.02,127.95,127.93,0.03]
[1741581440680,23.70890706,127.95,127.93,0.03]
[1741581442297,16.68890706,127.94,127.93,0.03]
[1741581442468,23.70890706,127.95,127.93,0.03]
[1741581446091,7.02,127.95,127.93,0.03]
[1741581446468,23.70890706,127.95,127.93,0.03]
[1741581447292,16.68890706,127.95,127.93,0.03]
[1741581450288,10.70882094,127.95,127.93,0.03]
[1741581451002,17.72882094,127.96,127.93,0.03]
[1741581451702,10.70882094,127.94,127.93,0.03]
[1741581452004,10.70882094,127.95,127.93,0.03]
[1741581452301,17.72882094,127.96,127.93,0.03]
[1741581453486,10.70882094,127.95,127.93,0.03]
[1741581453688,10.70882094,127.94,127.93,0.03]
[1741581455584,10.70882094,127.95,127.93,0.03]
[1741581456098,17.72882094,127.96,127.93,0.03]
[1741581456289,7.02,127.96,127.93,0.03]
[1741581456490,10.70882094,127.97,127.93,0.03]
[1741581457290,10.70882094,127.96,127.93,0.03]
[1741581458310,10.70882094,127.95,127.93,0.03]
[1741581458997,10.70882094,127.94,127.93,0.03]
[1741581460095,10.70882094,127.95,127.93,0.03]
[1741581460307,10.70882094,127.96,127.93,0.03]
[1741581462326,29.3584698,127.97,127.93,0.03]
[1741581463422,29.3584698,127.97,127.93,7.8467]
[1741581463806,20.0,127.97,127.94,10.70882094]
[1741581464019,0.063,127.98,127.94,10.70882094]
[1741581464217,10.77182094,127.98,127.93,38.09742094]
[1741581464519,10.70882094,127.97,127.93,7.8467]
[1741581465811,10.77182094,127.98,127.93,18.55552094]
[1741581466020,0.063,127.98,127.94,10.70882094]
[1741581466902,10.70882094,127.97,127.93,7.8467]
[1741581467594,30.77182094,127.98,127.93,18.55552094]
[1741581468420,30.77182094,127.98,127.93,7.8467]
[1741581468619,10.70882094,127.97,127.93,7.8467]
[1741581471331,10.70882094,127.96,127.93,0.03]
[1741581471537,10.70882094,127.97,127.93,0.03]
[1741581473532,10.77182094,127.98,127.93,0.03]
[1741581473715,20.0,127.96,127.93,0.03]
[1741581474630,10.70882094,127.97,127.93,0.03]
[1741581475124,10.77182094,127.98,127.93,0.03]
[1741581475828,10.77182094,127.98,127.93,10.73882094]
[1741581476030,10.77182094,127.98,127.94,7.8161]
[1741581477703,10.70882094,127.97,127.94,7.8161]
[1741581478234,10.70882094,127.97,127.93,0.03]
[1741581478417,10.77182094,127.98,127.93,7.8467]
[1741581479707,10.70882094,127.96,127.93,7.8467]
[1741581480108,10.70882094,127.97,127.93,7.8467]
[1741581480312,7.8767,127.98,127.93,0.03]
[1741581480313,10.70882094,127.96,127.93,0.03]
[1741581482438,30.70882094,127.97,127.93,0.03]
[1741581485742,20.0,127.97,127.93,10.73882094]
[1741581486734,20.0,127.97,127.93,0.03]
[1741581490315,18.58562094,127.98,127.93,0.03]
[1741581490514,29.3584698,127.97,127.93,0.03]
[1741581490922,37.1729698,127.97,127.93,0.03]
[1741581491123,10.70882094,127.96,127.93,0.03]
[1741581492044,10.70882094,127.95,127.93,0.03]
[1741581492218,20.0,127.92,127.91,0.505]
[1741581492428,30.70882094,127.92,127.91,0.505]
[1741581492739,49.3584698,127.92,127.91,0.505]
[1741581493939,30.70882094,127.92,127.91,0.505]
[1741581494128,20.0,127.92,127.91,0.505]
[1741581494328,30.70882094,127.92,127.91,0.505]
[1741581495528,38.52612094,127.92,127.91,0.505]
[1741581496328,57.1757698,127.92,127.91,0.505]
[1741581496755,100.01105356,127.92,127.91,0.505]
[1741581497132,100.01105356,127.92,127.91,0.535]
[1741581498325,49.3584698,127.92,127.91,0.535]
[1741581498527,30.70882094,127.92,127.91,0.535]
[1741581499059,20.0,127.92,127.91,0.535]
[1741581499969,38.52612094,127.92,127.91,0.535]
[1741581500347,57.1757698,127.92,127.91,0.535]
[1741581501763,100.01105356,127.92,127.91,0.535]
[1741581502376,57.1757698,127.92,127.91,0.535]
[1741581504784,20.0,127.92,127.91,0.535]
[1741581504989,20.0,127.92,127.91,8.3529]
[1741581505289,20.0,127.92,127.91,0.535]
[1741581507586,20.0,127.92,127.91,8.3529]
[1741581508083,20.0,127.92,127.91,0.535]
[1741581509562,20.0,127.92,127.91,8.3529]
[1741581509968,20.0,127.92,127.91,0.535]
[1741581510172,20.0,127.92,127.91,8.3529]
[1741581510389,0.063,127.93,127.91,8.3529]
[1741581514785,0.063,127.93,127.91,19.06172094]
[1741581517597,0.063,127.93,127.91,0.535]
[1741581518791,30.77182094,127.93,127.91,0.535]
[1741581518990,20.063,127.93,127.91,0.535]
[1741581519604,20.063,127.93,127.91,8.3529]
[1741581520105,0.063,127.93,127.91,8.3529]
[1741581520477,0.063,127.93,127.9,7.8183]
[1741581521708,10.77182094,127.93,127.9,0.03]
[1741581521887,0.063,127.93,127.9,0.03]
[1741581524512,20.063,127.93,127.9,0.03]
[1741581524685,0.063,127.93,127.9,10.73882094]
[1741581525683,0.063,127.93,127.91,7.8179]
[1741581526012,0.063,127.93,127.91,18.52672094]
[1741581526218,0.063,127.93,127.92,10.70882094]
[1741581527907,0.063,127.93,127.92,18.52612094]
[1741581530202,0.063,127.93,127.92,7.8173]
[1741581530388,0.063,127.93,127.91,18.52662094]
[1741581530788,0.063,127.93,127.9,173.73882094]
[1741581531017,0.063,127.93,127.9,181.55722094]
[1741581531688,0.063,127.93,127.9,100.05722094]
[1741581532200,0.063,127.93,127.9,81.53]
[1741581532788,0.063,127.93,127.9,89.3485]
[1741581533309,0.063,127.93,127.9,81.53]
[1741581534004,20.063,127.93,127.9,0.03]
[1741581534524,10.70882094,127.91,127.9,0.03]
[1741581534999,29.3584698,127.91,127.9,0.03]
[1741581536509,37.1763698,127.91,127.9,0.03]
[1741581538513,29.3584698,127.91,127.9,0.03]
[1741581539509,10.70882094,127.92,127.9,0.03]
[1741581540613,10.70882094,127.91,127.9,0.03]
[1741581542210,18.52672094,127.91,127.9,0.03]
[1741581544329,10.70882094,127.91,127.9,0.03]
[1741581544495,0.063,127.93,127.9,0.03]
[1741581544831,20.0,127.92,127.9,0.03]
[1741581544991,10.77182094,127.93,127.9,0.03]
[1741581545726,10.77182094,127.93,127.91,10.70882094]
[1741581545727,0.063,127.93,127.91,10.70882094]
[1741581546431,0.063,127.93,127.92,10.70882094]
[1741581547710,0.063,127.93,127.91,18.52672094]
[1741581547911,0.063,127.93,127.91,7.8179]
[1741581548505,0.063,127.93,127.91,18.52672094]
[1741581551011,0.063,127.93,127.91,7.8179]
[1741581552839,0.063,127.93,127.9,89.3483]
[1741581553014,10.77182094,127.93,127.9,0.03]
[1741581553835,10.77182094,127.93,127.9,7.8485]
[1741581555733,10.77182094,127.93,127.9,0.03]
[1741581556924,10.70882094,127.92,127.9,0.03]
[1741581557238,30.70882094,127.91,127.9,0.03]
[1741581557938,49.3584698,127.91,127.9,0.03]
[1741581558121,131.7584698,127.91,127.9,0.03]
[1741581558321,131.7584698,127.91,127.89,0.03]
[1741581558322,18.64964886,127.9,127.89,0.03]
[1741581558516,7.8222,127.85,127.8,0.03]
[1741581558742,10.70882094,127.84,127.8,0.03]
[1741581559120,10.70882094,127.84,127.8,7.8546]
[1741581559529,10.70882094,127.84,127.8,0.03]
[1741581560126,57.5458698,127.84,127.8,0.03]
[1741581560331,38.64964886,127.81,127.8,0.03]
[1741581560530,62.44421022,127.81,127.8,0.03]
[1741581561135,43.79456136,127.81,127.8,0.03]
[1741581561951,20.0,127.81,127.8,0.03]
[1741581562250,16.77456136,127.82,127.8,0.03]
[1741581563344,36.77456136,127.81,127.8,0.03]
[1741581563748,20.0,127.81,127.8,0.03]
[1741581564943,36.77456136,127.81,127.8,0.03]
[1741581571539,20.0,127.81,127.8,0.03]
[1741581572158,16.77456136,127.82,127.8,0.03]
[1741581572355,36.77456136,127.81,127.8,0.03]
[1741581572865,16.77456136,127.82,127.8,0.03]
[1741581573066,16.77456136,127.83,127.8,0.03]
[1741581574374,16.77456136,127.84,127.8,0.03]
[1741581576072,16.77456136,127.83,127.8,0.03]
[1741581576660,16.77456136,127.81,127.8,0.03]
[1741581577656,24.59866136,127.81,127.8,0.03]
[1741581577973,43.24831022,127.81,127.8,0.03]
[1741581578944,35.42421022,127.81,127.8,0.03]
[1741581579574,43.24831022,127.81,127.8,0.03]
[1741581580073,16.77456136,127.81,127.8,0.03]
[1741581592402,60.02287158,127.81,127.8,0.03]
[1741581593483,43.24831022,127.81,127.8,0.03]
[1741581593669,60.02287158,127.81,127.8,0.03]
[1741581595189,16.77456136,127.81,127.8,0.03]
[1741581595682,20.0,127.81,127.8,0.03]
[1741581595888,36.77456136,127.81,127.8,0.03]
[1741581596073,16.77456136,127.82,127.8,0.03]
[1741581597385,16.77456136,127.81,127.8,0.03]
[1741581598289,36.77456136,127.81,127.8,0.03]
[1741581599011,20.0,127.81,127.8,0.03]
[1741581600203,16.77456136,127.82,127.8,0.03]
[1741581600384,0.063,127.83,127.8,0.03]
[1741581600790,16.83756136,127.83,127.8,7.8547]
[1741581601110,16.83756136,127.83,127.8,0.03]
[1741581601111,16.77456136,127.82,127.8,0.03]
[1741581601800,16.83756136,127.83,127.8,0.03]
[1741581601984,0.063,127.83,127.8,0.03]
[1741581607015,16.83756136,127.83,127.8,0.03]
[1741581608403,16.77456136,127.81,127.8,0.03]
[1741581609483,43.24831022,127.81,127.8,0.03]
[1741581609805,142.42287158,127.81,127.8,0.03]
[1741581611409,125.64831022,127.81,127.8,0.03]
[1741581612308,142.42287158,127.81,127.8,0.03]
[1741581612811,125.64831022,127.81,127.8,0.03]
[1741581613500,117.82421022,127.81,127.8,0.03]
[1741581613827,99.17456136,127.81,127.8,0.03]
[1741581614208,35.42421022,127.81,127.8,0.03]
[1741581614407,43.24831022,127.81,127.8,0.03]
[1741581616725,60.02287158,127.81,127.8,0.03]
[1741581617190,43.24831022,127.81,127.8,0.03]
[1741581619124,60.02287158,127.81,127.8,0.03]
[1741581619630,43.24831022,127.81,127.8,0.03]
[1741581619804,16.77456136,127.81,127.8,0.03]
[1741581621024,25.73264886,127.83,127.8,0.03]
[1741581621200,16.77456136,127.81,127.8,0.03]
[1741581622327,24.59866136,127.81,127.8,0.03]
[1741581622632,43.24831022,127.81,127.8,0.03]
[1741581624906,16.77456136,127.81,127.8,0.03]
[1741581626309,24.59866136,127.81,127.8,0.03]
[1741581626920,16.77456136,127.81,127.8,0.03]
[1741581628413,20.0,127.81,127.8,0.03]
[1741581628597,36.77456136,127.81,127.8,0.03]
[1741581629328,16.77456136,127.81,127.8,0.03]
[1741581629639,0.063,127.83,127.8,0.03]
[1741581630725,0.063,127.83,127.8,7.8547]
[1741581631536,16.83756136,127.83,127.8,0.03]
[1741581631718,16.77456136,127.82,127.8,0.03]
[1741581632346,16.83756136,127.83,127.8,0.03]
[1741581633640,24.66056136,127.83,127.8,0.03]
[1741581633934,16.77456136,127.81,127.8,0.03]
[1741581634742,16.77456136,127.82,127.8,0.03]
[1741581635043,0.063,127.83,127.8,0.03]
[1741581635244,16.83756136,127.83,127.8,0.03]
[1741581635433,0.063,127.83,127.8,0.03]
[1741581636945,0.063,127.83,127.8,7.8547]
[1741581638040,0.063,127.83,127.8,45.81146136]
[1741581638845,0.063,127.83,127.82,7.8235]
[1741581639420,0.063,127.83,127.82,24.59806136]
[1741581639619,0.063,127.83,127.82,106.09806136]
[1741581642334,16.77456136,127.89,127.82,106.09806136]